lending/lending_fUSD_20250406
["ID","MTS","AMOUNT","RATE_DAILY","PERIOD"]
[357242417,1743934243473,-400.692135,0.0004,14]
[357242418,1743934243483,-151.0,0.0004,14]
[357242419,1743934243493,-563.611564,0.0004,14]
[357242420,1743934243502,-273.733348,0.0004,14]
[357242421,1743934243511,-273.733348,0.0004,14]
[357242422,1743934243520,-563.611564,0.0004,14]
[357242423,1743934243530,-151.0,0.0004,14]
[357242424,1743934243539,-2438.1210544,0.00040265,2]
[357242425,1743934243549,-500.0,0.00040293,30]
[357242426,1743934243558,-163.0,0.00041,14]
[357242427,1743934243568,-150.5,0.00041066,120]
[357242428,1743934243577,-150.5,0.00041076,120]
[357242429,1743934243587,-150.5,0.00041086,120]
[357242430,1743934243596,-457.56343049,0.00041095,120]
[357242431,1743934243606,-500.0,0.00041096,30]
[357242432,1743934243615,-500.0,0.00041096,30]
[357242433,1743934243625,-500.0,0.00041096,30]
[357242434,1743934243634,-500.0,0.00041096,30]
[357242435,1743934243643,-500.0,0.00041096,30]
[357242436,1743934243653,-500.0,0.00041096,30]
[357242437,1743934243662,-500.0,0.00041096,30]
[357242438,1743934243671,-500.0,0.00041096,30]
[357242439,1743934243680,-252.0,0.00041096,30]
[357242440,1743934243689,-641.57651503,0.00041096,31]
[357242441,1743934243699,-641.57651503,0.00041096,31]
[357242442,1743934243709,-641.57651503,0.00041096,31]
[357242443,1743934243718,-641.57651503,0.00041096,31]
[357242444,1743934243727,-641.57651503,0.00041096,31]
[357242445,1743934243740,-641.57651503,0.00041096,31]
[357242446,1743934243750,-641.57651503,0.00041096,31]
[357242447,1743934243759,-641.57651503,0.00041096,31]
[357242448,1743934243768,-641.57651503,0.00041096,31]
[357242449,1743934243778,-641.57651503,0.00041096,31]
[357242450,1743934243787,-641.57651503,0.00041096,31]
[357242451,1743934243796,-641.57651503,0.00041096,31]
[357242452,1743934243806,-641.57651503,0.00041096,31]
[357242453,1743934243817,-641.57651503,0.00041096,31]
[357242454,1743934243826,-641.57651503,0.00041096,31]
[357242455,1743934243836,-641.57651503,0.00041096,31]
[357242456,1743934243845,-641.57651503,0.00041096,31]
[357242457,1743934243855,-564.08,0.00041121,2]
[357242458,1743934243863,-500.0,0.00041584,30]
[357242459,1743934243963,-1092.73,0.00041888,120]
[357242460,1743934243972,-487.53138383,0.00041893,15]
[357242461,1743934243982,-151.0,0.00041961,14]
[357242462,1743934243991,-151.0,0.00041961,14]
[357242463,1743934244001,-151.0,0.00041961,14]
[357242464,1743934244010,-151.0,0.00041961,14]
[357242465,1743934244019,-151.0,0.00041961,14]
[357242466,1743934244028,-151.0,0.00041961,14]
[357242467,1743934244038,-151.0,0.00041961,14]
[357242468,1743934244048,-151.0,0.00041961,14]
[357242469,1743934244057,-152.04544,0.00041961,14]
[357242470,1743934244067,-151.0,0.00041961,14]
[357242471,1743934244076,-151.0,0.00041961,14]
[357242472,1743934244085,-151.0,0.00041961,14]
[357242473,1743934244095,-151.0,0.00041961,14]
[357242474,1743934244104,-178.77207,0.00041961,14]
[357242475,1743934244113,-178.77207,0.00041961,14]
[357242476,1743934244123,-151.0,0.00041961,14]
[357242477,1743934244132,-151.0,0.00041961,14]
[357242478,1743934244144,-151.0,0.00041961,14]
[357242479,1743934244153,-151.0,0.00041961,14]
[357242480,1743934244162,-152.270447,0.00041961,14]
[357242481,1743934244172,-151.0,0.00041961,14]
[357242482,1743934244181,-151.0,0.00041961,14]
[357242483,1743934244190,-151.0,0.00041961,14]
[357242484,1743934244199,-282.538434,0.00041961,14]
[357242485,1743934244208,-151.0,0.00041961,14]
[357242486,1743934244218,-151.989622,0.00041961,14]
[357242487,1743934244227,-151.0,0.00041961,14]
[357242488,1743934244236,-151.0,0.00041961,14]
[357242489,1743934244246,-10000.0,0.00041983,3]
[357242490,1743934244255,-348.71167463,0.00042,120]
[357242491,1743934244264,-631.856,0.000422,63]
[357242492,1743934244274,-1500.0,0.000425,120]
[357242493,1743934244283,-2058.954153,0.00042777,120]
[357242494,1743934244292,-5871.82119941,0.00043,30]
[357242495,1743934244302,-500.0,0.00043031,30]
[357242496,1743934244311,-50367.19857383,0.00043096,15]
[357242497,1743934244320,-564.08,0.00043385,2]
[357242498,1743934244330,-1700.62266058,0.000435,120]
[357242499,1743934244340,-3132.86578485,0.00043648,2]
[357242500,1743934244350,-211.7306237,0.000437,120]
[357242501,1743934244359,-161.22283372,0.000438,120]
[357242502,1743934244368,-500.0,0.000438,30]
[357242503,1743934244378,-151.0,0.00043836,14]
[357242504,1743934244387,-191.751004,0.00043836,14]
[357242505,1743934244396,-191.751004,0.00043836,14]
[357242506,1743934244405,-154.714453,0.00043836,14]
[357242507,1743934244414,-151.0,0.00043836,14]
[357242508,1743934244424,-151.0,0.00043836,14]
[357242509,1743934244434,-151.0,0.00043836,14]
[357242510,1743934244446,-152.179636,0.00043836,14]
[357242511,1743934244457,-151.0,0.00043836,14]
[357242512,1743934244467,-400.692135,0.00043836,14]
[357242513,1743934244476,-400.692135,0.00043836,14]
[357242514,1743934244486,-151.0,0.00043836,14]
[357242515,1743934244495,-563.611564,0.00043836,14]
[357242516,1743934244504,-273.733348,0.00043836,14]
[357242517,1743934244513,-273.733348,0.00043836,14]
[357242518,1743934244522,-563.611564,0.00043836,14]
[357242519,1743934244532,-1221.98054143,0.00043836,120]
[357242520,1743934244541,-1221.98054143,0.00043836,120]
[357242521,1743934244552,-1221.98054143,0.00043836,120]
[357242522,1743934244561,-1221.98054143,0.00043836,120]
[357242523,1743934244570,-1221.98054143,0.00043836,120]
[357242524,1743934244580,-1221.98054143,0.00043836,120]
[357242525,1743934244589,-1221.98054143,0.00043836,120]
[357242526,1743934244599,-1221.98054143,0.00043836,120]
[357242527,1743934244608,-1221.98054143,0.00043836,120]
[357242528,1743934244617,-1221.98054143,0.00043836,120]
[357242529,1743934244626,-1221.98054143,0.00043836,120]
[357242530,1743934244635,-1221.98054143,0.00043836,120]
[357242531,1743934244644,-1221.98054143,0.00043836,120]
[357242532,1743934244654,-1221.98054143,0.00043836,120]
[357242533,1743934244663,-1221.98054143,0.00043836,120]
[357242534,1743934244672,-151.0,0.00043836,14]
[357242535,1743934244681,-1221.98054143,0.00043836,120]
[357242536,1743934244690,-1221.98054143,0.00043836,120]
[357242537,1743934244700,-1221.98054143,0.00043836,120]
[357242538,1743934244710,-1221.98054143,0.00043836,120]
[357242539,1743934244719,-1221.98054143,0.00043836,120]
[357242540,1743934244728,-1221.98054143,0.00043836,120]
[357242541,1743934244741,-1221.98054143,0.00043836,120]
[357242542,1743934244751,-1221.98054143,0.00043836,120]
[357242543,1743934244760,-1221.98054143,0.00043836,120]
[357242544,1743934244769,-1221.98054143,0.00043836,120]
[357242545,1743934244779,-1221.98054143,0.00043836,120]
[357242546,1743934244788,-1221.98054143,0.00043836,120]
[357242547,1743934244797,-1221.98054143,0.00043836,120]
[357242548,1743934244806,-1221.98054143,0.00043836,120]
[357242549,1743934244816,-1221.98054143,0.00043836,120]
[357242550,1743934244825,-1221.98054143,0.00043836,120]
[357242551,1743934244835,-1221.98054143,0.00043836,120]
[357242552,1743934244844,-1221.98054143,0.00043836,120]
[357242553,1743934244853,-1221.98054143,0.00043836,120]
[357242554,1743934244862,-1221.98054143,0.00043836,120]
[357242555,1743934244871,-2000.0,0.00043983,2]
[357242556,1743934244880,-3721.12761426,0.00044,120]
[357242557,1743934244890,-221.82243,0.00044,14]
[357242558,1743934244899,-151.0,0.00044,14]
[357242559,1743934244909,-151.0,0.00044,14]
[357242560,1743934244918,-151.0,0.00044,14]
[357242561,1743934244928,-151.0,0.00044,14]
[357242562,1743934244937,-3982.123745,0.00044,14]
[357242563,1743934244947,-179.389828,0.00044,14]
[357242564,1743934244958,-158.374622,0.00044,14]
[357242565,1743934244967,-158.374622,0.00044,14]
[357242566,1743934244976,-219.412904,0.00044,14]
[357242567,1743934244986,-280.575915,0.00044,14]
[357242568,1743934244996,-280.575915,0.00044,14]
[357242569,1743934245006,-206.89,0.00044239,2]
[357242570,1743934245015,-153.15063803,0.00044247,14]
[357242571,1743934245024,-153.73,0.000443,36]
[357242572,1743934245034,-153.73,0.000443,36]
[357242573,1743934245043,-153.73,0.000443,36]
[357242574,1743934245052,-153.73,0.000443,36]
[357242575,1743934245061,-153.73,0.000443,36]
[357242576,1743934245070,-5925.4397215,0.0004449,2]
[357242577,1743934245080,-2100.0,0.000445,120]
[357242578,1743934245089,-356.98,0.000445,2]
[357242579,1743934245098,-151.14,0.00044521,2]
[357242580,1743934245107,-500.0,0.00044644,30]
[357242581,1743934245116,-351.74229389,0.000449,30]
[357242582,1743934245126,-178.09473118,0.000449,20]
[357242583,1743934245135,-506.7126044,0.00045,120]
[357242584,1743934245144,-1268.43887198,0.00045,60]
[357242585,1743934245154,-1139.6754091,0.00045,120]
[357242586,1743934245163,-151.0,0.00045,120]
[357242587,1743934245173,-436.91112575,0.00045,2]
[357242588,1743934245182,-272.15670317,0.00045,120]
[357242589,1743934245191,-1250.89597592,0.00045,120]
[357242590,1743934245201,-1000.0,0.00045,120]
[357242591,1743934245210,-151.0,0.00045,120]
[357242593,1743934245219,-1115.5,0.000452,5]
[357242594,1743934245228,-168.02,0.00045205,2]
[357242595,1743934245237,-169.12,0.00045205,2]
[357242596,1743934245247,-487.53138383,0.00045559,15]
[357242597,1743934245256,-431.14638206,0.000456,120]
[357242598,1743934245265,-564.08,0.00045649,2]
[357242599,1743934245274,-500.0,0.00045849,30]
[357242600,1743934245284,-926.8379598,0.000459,119]
[357242601,1743934245293,-13640.07074218,0.00045968,2]
[357242602,1743934245303,-165.02415853,0.00046,120]
[357242603,1743934245312,-229.80374544,0.00046,120]
[357242604,1743934245321,-168.77982847,0.00046,60]
[357242605,1743934245331,-355.05311311,0.000461,120]
[357242606,1743934245340,-1092.73,0.00046366,120]
[357242607,1743934245349,-834.98693365,0.00046387,2]
[357242608,1743934245358,-1489.16806328,0.000465,120]
[357242609,1743934245368,-1070.96,0.000467,7]
[357242610,1743934245377,-695.02671645,0.000468,120]
[357242611,1743934245386,-500.0,0.00046896,30]
[357242613,1743934245395,-1344.62736127,0.000469,120]
[357242614,1743934245404,-153.73,0.000469,42]
[357242615,1743934245413,-153.73,0.000469,42]
[357242616,1743934245423,-153.73,0.000469,42]
[357242617,1743934245432,-153.73,0.000469,42]
[357242618,1743934245441,-153.73,0.000469,42]
[357242619,1743934245450,-153.73,0.000469,42]
[357242620,1743934245460,-153.73,0.000469,42]
[357242621,1743934245469,-153.73,0.000469,42]
[357242622,1743934245479,-153.73,0.000469,42]
[357242623,1743934245488,-153.73,0.000469,42]
[357242624,1743934245583,-212.97818639,0.000469,25]
[357242625,1743934245592,-50367.19857383,0.00046962,15]
[357242626,1743934245602,-2000.0,0.00046983,5]
[357242627,1743934245611,-210.57292898,0.0004699,2]
[357242628,1743934245620,-1216.93472121,0.00047,120]
[357242629,1743934245630,-1732.02599341,0.00047,120]
[357242630,1743934245639,-500.0,0.0004709,30]
[357242631,1743934245649,-1632.24848305,0.00047495,120]
[357242632,1743934245658,-5232.80706898,0.000476,2]
[357242633,1743934245667,-15687.23726714,0.00047777,2]
[357242634,1743934245677,-151.0,0.00047777,14]
[357242635,1743934245687,-151.0,0.00047777,14]
[357242636,1743934245697,-151.0,0.00047777,14]
[357242637,1743934245707,-459.433264,0.00047777,14]
[357242638,1743934245717,-151.0,0.00047777,14]
[357242639,1743934245726,-459.433264,0.00047777,14]
[357242640,1743934245738,-151.968707,0.00047777,14]
[357242641,1743934245748,-153.940682,0.00047777,14]
[357242642,1743934245757,-214.096914,0.00047777,14]
[357242643,1743934245767,-151.0,0.00047777,14]
[357242644,1743934245777,-214.096914,0.00047777,14]
[357242645,1743934245787,-151.0,0.00047777,14]
[357242646,1743934245796,-151.0,0.00047777,14]
[357242647,1743934245806,-191.751004,0.00047777,14]
[357242648,1743934245816,-191.751004,0.00047777,14]
[357242649,1743934245826,-151.0,0.00047777,14]
[357242650,1743934245835,-151.0,0.00047777,14]
[357242651,1743934245845,-151.0,0.00047777,14]
[357242652,1743934245854,-274.23676598,0.000478,120]
[357242653,1743934245864,-2000.0,0.000479,2]
[357242654,1743934245874,-151.0,0.000479,14]
[357242655,1743934245883,-400.692135,0.000479,14]
[357242656,1743934245893,-400.692135,0.000479,14]
[357242657,1743934245902,-151.0,0.000479,14]
[357242658,1743934245911,-563.611564,0.000479,14]
[357242659,1743934245920,-273.733348,0.000479,14]
[357242660,1743934245930,-273.733348,0.000479,14]
[357242661,1743934245939,-563.611564,0.000479,14]
[357242662,1743934245949,-151.0,0.000479,14]
[357242663,1743934245959,-564.08,0.00047913,2]
[357242664,1743934245969,-100591.32789289,0.00048,120]
[357242665,1743934245979,-300.0,0.00048,120]
[357242666,1743934245988,-30006.38878795,0.00048,120]
[357242667,1743934245998,-151.0,0.00048,14]
[357242669,1743934246007,-151.0,0.00048,14]
[357242670,1743934246016,-151.0,0.00048,14]
[357242671,1743934246026,-151.0,0.00048,14]
[357242672,1743934246035,-244.921344,0.00048,14]
[357242674,1743934246044,-151.0,0.00048,14]
[357242675,1743934246054,-151.0,0.00048,14]
[357242676,1743934246063,-151.0,0.00048,14]
[357242677,1743934246073,-35287.95831512,0.00048,120]
[357242679,1743934246082,-151.0,0.00048,14]
[357242681,1743934246091,-151.0,0.00048,14]
[357242683,1743934246101,-151.0,0.00048,14]
[357242685,1743934246110,-467.99568516,0.00048,120]
[357242687,1743934246288,-126.95054328,0.00043836,120]
[357242688,1743934246324,-1095.02999815,0.00043836,120]
[357242689,1743934246334,-1221.98054143,0.00043836,120]
[357242690,1743934246344,-1221.98054143,0.00043836,120]
[357242691,1743934246354,-1221.98054143,0.00043836,120]
[357242692,1743934246363,-1221.98054143,0.00043836,120]
[357242693,1743934246373,-3467.00431484,0.00048,120]
[357242694,1743934246382,-151.0,0.00048,14]
[357242695,1743934246391,-178.77207,0.00048,14]
[357242696,1743934246400,-178.77207,0.00048,14]
[357242697,1743934246409,-151.0,0.00048,14]
[357242698,1743934246418,-151.0,0.00048,14]
[357242699,1743934246426,-152.411252,0.00048,14]
[357242700,1743934246435,-151.0,0.00048,14]
[357242701,1743934246444,-151.0,0.00048,14]
[357242702,1743934246453,-151.0,0.00048,14]
[357242703,1743934246462,-151.0,0.00048,14]
[357242704,1743934246471,-151.0,0.00048,14]
[357242705,1743934246480,-151.0,0.00048,14]
[357242706,1743934246488,-263.660639,0.00048,14]
[357242707,1743934246498,-151.0,0.00048,14]
[357242708,1743934246506,-500.0,0.00048,15]
[357242709,1743934246516,-151.0,0.00048,14]
[357242710,1743934246525,-151.0,0.00048,14]
[357242711,1743934246534,-151.0,0.00048,14]
[357242712,1743934246543,-3982.123745,0.00048,14]
[357242713,1743934246553,-158.374622,0.00048,14]
[357242714,1743934246562,-158.374622,0.00048,14]
[357242715,1743934246571,-280.575915,0.00048,14]
[357242716,1743934246581,-280.575915,0.00048,14]
[357242717,1743934246590,-225.64024056,0.000485,120]
[357242718,1743934246599,-4914.40099612,0.000488,120]
[357242719,1743934246608,-151.0,0.00048961,14]
[357242720,1743934246618,-191.751004,0.00048961,14]
[357242721,1743934246627,-191.751004,0.00048961,14]
[357242722,1743934246637,-151.0,0.00048961,14]
[357242723,1743934246646,-151.0,0.00048961,14]
[357242724,1743934246658,-151.0,0.00048961,14]
[357242725,1743934246668,-151.0,0.00048961,14]
[357242726,1743934246677,-400.692135,0.00048961,14]
[357242727,1743934246686,-400.692135,0.00048961,14]
[357242728,1743934246696,-563.611564,0.00048961,14]
[357242729,1743934246705,-273.733348,0.00048961,14]
[357242730,1743934246715,-273.733348,0.00048961,14]
[357242731,1743934246724,-563.611564,0.00048961,14]
[357242732,1743934246734,-1000.0,0.00048983,5]
[357242733,1743934246748,-5000.0,0.00048983,5]
[357242734,1743934246758,-5000.0,0.00048983,5]
[357242735,1743934246767,-10000.0,0.00048983,7]
[357242736,1743934246777,-1654.0,0.00049,7]
[357242737,1743934246787,-171.79697548,0.00049,30]
[357242738,1743934246796,-204.82106357,0.00049,7]
[357242739,1743934246902,-500.0,0.00049,120]
[357242740,1743934246912,-500.0,0.00049,120]
[357242741,1743934246922,-500.0,0.00049,120]
[357242742,1743934246931,-151.67303003,0.00049,120]
[357242743,1743934246940,-32014.49426353,0.00049,2]
[357242744,1743934247360,-1221.98054143,0.00043836,120]
[357242745,1743934247370,-1221.98054143,0.00043836,120]
[357242746,1743934247379,-9950.89732792,0.00049,2]
[357242747,1743934247389,-10200.77969755,0.00049,2]
[357242748,1743934247399,-20292.5,0.0004903,30]
[357242749,1743934247408,-500.0,0.00049041,120]
[357242750,1743934247417,-500.0,0.00049041,120]
[357242751,1743934247426,-500.0,0.00049041,120]
[357242752,1743934247435,-500.0,0.00049041,120]
[357242753,1743934247444,-500.0,0.00049041,120]
[357242754,1743934247454,-500.0,0.00049041,120]
[357242755,1743934247463,-500.0,0.00049041,120]
[357242756,1743934247473,-500.0,0.00049041,120]
[357242757,1743934247482,-500.0,0.00049041,120]
[357242758,1743934247491,-500.0,0.00049041,120]
[357242759,1743934247501,-301.12949911,0.00049041,120]
[357242760,1743934247510,-500.0,0.00049041,120]
[357242761,1743934247520,-500.0,0.00049041,120]
[357242762,1743934247529,-500.0,0.00049041,120]
[357242763,1743934247538,-500.0,0.00049041,120]
[357242764,1743934247548,-500.0,0.00049041,120]
[357242765,1743934247557,-487.53138383,0.00049224,15]
[357242766,1743934247566,-2505.1,0.00049234,30]
[357242767,1743934247575,-3982.123745,0.00049234,14]
[357242768,1743934247585,-500.0,0.00049266,30]
[357242769,1743934247594,-1380.21,0.00049299,30]
[357242770,1743934247603,-154.73463474,0.00049305,30]
[357242771,1743934247612,-288.832889,0.00049315,14]
[357242772,1743934247621,-164.356624,0.00049315,14]
[357242773,1743934247630,-151.0,0.00049315,14]
[357242774,1743934247640,-151.0,0.00049315,14]
[357242775,1743934247649,-459.433264,0.00049315,14]
[357242776,1743934247658,-151.0,0.00049315,14]
[357242777,1743934247667,-459.433264,0.00049315,14]
[357242778,1743934247676,-214.096914,0.00049315,14]
[357242779,1743934247685,-151.0,0.00049315,14]
[357242780,1743934247694,-214.096914,0.00049315,14]
[357242781,1743934247704,-151.0,0.00049315,14]
[357242782,1743934247718,-187.5,0.00049315,120]
[357242783,1743934247727,-375.0,0.00049315,120]
[357242784,1743934247739,-471.07009003,0.00049315,120]
[357242785,1743934247749,-151.0,0.00049315,14]
[357242786,1743934247758,-151.0,0.00049315,14]
[357242787,1743934247767,-1000.0,0.00049315,120]
[357242788,1743934247777,-151.0,0.00049315,14]
[357242789,1743934247786,-151.0,0.00049315,14]
[357242790,1743934247795,-151.0,0.00049315,14]
[357242791,1743934247804,-158.374622,0.00049315,14]
[357242792,1743934247815,-158.374622,0.00049315,14]
[357242793,1743934247824,-280.575915,0.00049315,14]
[357242794,1743934247833,-280.575915,0.00049315,14]
[357242795,1743934247842,-1000.0,0.00049315,20]
[357242796,1743934247851,-1000.0,0.00049315,20]
[357242797,1743934247860,-1000.0,0.00049315,20]
[357242798,1743934247870,-1000.0,0.00049315,15]
[357242799,1743934247879,-1000.0,0.00049315,15]
[357242800,1743934247888,-1000.0,0.00049315,15]
[357242801,1743934247897,-1000.0,0.00049315,15]
[357242802,1743934247906,-206.37,0.00049315,60]
[357242803,1743934247915,-1000.0,0.00049315,15]
[357242804,1743934247924,-1000.0,0.00049315,15]
[357242805,1743934247933,-1000.0,0.00049315,15]
[357242806,1743934247941,-1000.0,0.00049315,15]
[357242807,1743934247951,-1000.0,0.00049315,15]
[357242808,1743934247960,-1000.0,0.00049315,15]
[357242809,1743934247969,-1000.0,0.00049315,15]
[357242810,1743934247978,-1000.0,0.00049315,15]
[357242811,1743934247987,-1000.0,0.00049315,15]
[357242812,1743934247996,-1000.0,0.00049315,15]
[357242813,1743934248005,-1000.0,0.00049315,15]
[357242814,1743934248014,-1000.0,0.00049315,15]
[357242815,1743934248023,-1000.0,0.00049315,15]
[357242816,1743934248033,-1000.0,0.00049315,15]
[357242817,1743934248042,-1000.0,0.00049315,15]
[357242818,1743934248052,-1000.0,0.00049315,15]
[357242819,1743934248061,-1000.0,0.00049315,15]
[357242820,1743934248071,-1000.0,0.00049315,15]
[357242821,1743934248081,-1000.0,0.00049315,15]
[357242822,1743934248091,-1000.0,0.00049315,15]
[357242823,1743934248100,-1000.0,0.00049315,15]
[357242824,1743934248110,-1000.0,0.00049315,15]
[357242825,1743934248119,-1000.0,0.00049315,15]
[357242826,1743934248128,-1000.0,0.00049315,15]
[357242827,1743934248137,-1000.0,0.00049315,15]
[357242828,1743934248147,-1000.0,0.00049315,15]
[357242829,1743934248156,-1000.0,0.00049315,15]
[357242830,1743934248166,-1000.0,0.00049315,15]
[357242831,1743934248176,-1000.0,0.00049315,15]
[357242832,1743934248186,-1000.0,0.00049315,15]
[357242833,1743934248196,-1000.0,0.00049315,15]
[357242834,1743934248208,-1000.0,0.00049315,15]
[357242835,1743934248219,-1000.0,0.00049315,15]
[357242836,1743934248230,-1000.0,0.00049315,15]
[357242837,1743934248243,-1000.0,0.00049315,15]
[357242838,1743934248258,-1000.0,0.00049315,15]
[357242839,1743934248346,-1000.0,0.00049315,15]
[357242840,1743934248356,-951.0,0.00049315,15]
[357242841,1743934248365,-1000.0,0.00049342,120]
[357242842,1743934248375,-177.72638874,0.00049346,120]
[357242843,1743934248384,-500.0,0.00049349,30]
[357242844,1743934248394,-25000.0,0.00049354,30]
[357242845,1743934248403,-151.0,0.00049354,120]
[357242846,1743934248412,-151.0,0.00049354,120]
[357242847,1743934248421,-157.587931,0.00049354,120]
[357242848,1743934248431,-151.0,0.00049354,120]
[357242849,1743934248440,-151.0,0.00049354,120]
[357242850,1743934248450,-151.0,0.00049354,120]
[357242851,1743934248460,-151.0,0.00049354,30]
[357242852,1743934248469,-158.681043,0.00049354,120]
[357242853,1743934248478,-151.0,0.00049354,120]
[357242854,1743934248487,-155.122425,0.00049354,120]
[357242855,1743934248497,-151.978421,0.00049354,120]
[357242856,1743934248506,-178.77207,0.00049354,120]
[357242857,1743934248515,-178.77207,0.00049354,120]
[357242858,1743934248524,-151.0,0.00049354,120]
[357242859,1743934248534,-151.0,0.00049354,120]
[357242860,1743934248543,-151.0,0.00049354,90]
[357242861,1743934248552,-151.0,0.00049354,120]
[357242862,1743934248561,-151.0,0.00049354,120]
[357242863,1743934248570,-151.0,0.00049354,120]
[357242864,1743934248580,-151.0,0.00049354,120]
[357242865,1743934248589,-216.77049,0.00049354,120]
[357242866,1743934248598,-191.751004,0.00049354,120]
[357242867,1743934248607,-191.751004,0.00049354,120]
[357242868,1743934248618,-153.46697,0.00049354,120]
[357242869,1743934248628,-151.0,0.00049354,120]
[357242870,1743934248637,-151.0,0.00049354,120]
[357242871,1743934248647,-25000.0,0.00049366,30]
[357242872,1743934248656,-151.0,0.00049366,120]
[357242873,1743934248665,-400.692135,0.00049366,120]
[357242874,1743934248675,-400.692135,0.00049366,120]
[357242875,1743934248684,-563.611564,0.00049366,120]
[357242876,1743934248694,-273.733348,0.00049366,120]
[357242877,1743934248704,-273.733348,0.00049366,120]
[357242878,1743934248714,-563.611564,0.00049366,120]
[357242879,1743934248723,-524.14351299,0.00049369,120]
[357242880,1743934248733,-25000.0,0.00049391,30]
[357242881,1743934248747,-1641.02,0.000494,14]
[357242882,1743934248756,-153.73,0.000494,45]
[357242883,1743934248766,-153.73,0.000494,45]
[357242884,1743934248775,-153.73,0.000494,45]
[357242885,1743934248786,-153.73,0.000494,45]
[357242886,1743934248796,-153.73,0.000494,45]
[357242887,1743934248805,-153.73,0.000494,45]
[357242888,1743934248815,-153.73,0.000494,45]
[357242889,1743934248824,-153.73,0.000494,45]
[357242890,1743934248834,-153.73,0.000494,45]
[357242891,1743934248844,-153.73,0.000494,45]
[357242892,1743934248854,-300.0,0.00049407,120]
[357242893,1743934248863,-1000.0,0.00049452,20]
[357242894,1743934248872,-1000.0,0.00049452,20]
[357242895,1743934248882,-2505.09,0.00049457,30]
[357242896,1743934248892,-213.70855184,0.000495,120]
[357242897,1743934248903,-2503.77,0.00049542,30]
[357242898,1743934248913,-25000.0,0.00049569,30]
[357242899,1743934248923,-1000.0,0.00049589,20]
[357242900,1743934248932,-1000.0,0.00049589,20]
[357242901,1743934248942,-1000.0,0.00049726,20]
[357242902,1743934248951,-1000.0,0.00049726,20]
[357242903,1743934248959,-263.70385514,0.000498,14]
[357242904,1743934248967,-25000.0,0.00049831,30]
[357242905,1743934248986,-3982.123745,0.00049831,120]
[357242906,1743934249002,-747.23942355,0.00049863,20]
[357242907,1743934249422,-1221.98054143,0.00043836,120]
[357242908,1743934249437,-1221.98054143,0.00043836,120]
[357242909,1743934249452,-1221.98054143,0.00043836,120]
[357242910,1743934249467,-1221.98054143,0.00043836,120]
[357242911,1743934249481,-1221.98054143,0.00043836,120]
[357242912,1743934249495,-1221.98054143,0.00043836,120]
[357242913,1743934249509,-477.14922193,0.00043836,120]
[357242914,1743934249525,-576.70999178,0.00043836,120]
[357242915,1743934249542,-168.12132772,0.00043836,120]
[357242916,1743934249556,-936.7705115,0.00043836,120]
[357242917,1743934249573,-285.21002993,0.00043836,120]
[357242918,1743934249586,-146.79899893,0.00043836,120]
[357242919,1743934249604,-1075.1815425,0.00043836,120]
[357242920,1743934249618,-1221.98054143,0.00043836,120]
[357242921,1743934249631,-1221.98054143,0.00043836,120]
[357242922,1743934249645,-1221.98054143,0.00043836,120]
[357242923,1743934249658,-1221.98054143,0.00043836,120]
[357242924,1743934249671,-640.93470429,0.00043836,120]
[357242925,1743934249708,-151.0,0.00038961,14]